fUST/lending_fUST_20240712
["ID","MTS","AMOUNT","RATE_DAILY","PERIOD"]
[331836236,1720786065553,-274.965,0.00025307,2]
[331836237,1720786065576,-150.5,0.0002547,62]
[331836238,1720786065596,-150.5,0.0002548,62]
[331836239,1720786065620,-500.0,0.00025487,2]
[331836240,1720786065644,-216.51875171,0.00025487,2]
[331836241,1720786065666,-510.04103303,0.00025487,2]
[331836242,1720786065688,-301.32138885,0.00025487,2]
[331836243,1720786065709,-500.0,0.00025487,2]
[331836244,1720786065732,-500.0,0.00025487,2]
[331836245,1720786065753,-297.20074816,0.00025487,2]
[331836246,1720786065776,-500.0,0.00025487,2]
[331836247,1720786065797,-500.0,0.00025487,2]
[331836248,1720786065818,-500.0,0.00025487,2]
[331836249,1720786065838,-500.0,0.00025487,2]
[331836250,1720786065861,-500.0,0.00025487,2]
[331836251,1720786065883,-500.0,0.00025487,2]
[331836252,1720786065906,-500.0,0.00025487,2]
[331836253,1720786065927,-500.0,0.00025487,2]
[331836254,1720786065949,-500.0,0.00025487,2]
[331836255,1720786065971,-500.0,0.00025487,2]
[331836256,1720786065993,-645.15178729,0.00025487,2]
[331836257,1720786066015,-500.0,0.00025487,2]
[331836258,1720786066036,-500.0,0.00025487,2]
[331836259,1720786066058,-500.0,0.00025487,2]
[331836260,1720786066080,-500.0,0.00025487,2]
[331836261,1720786066102,-500.0,0.00025487,2]
[331836262,1720786066126,-500.0,0.00025487,2]
[331836263,1720786066148,-605.30746133,0.00025487,2]
[331836264,1720786066170,-500.0,0.00025487,2]
[331836265,1720786066192,-500.0,0.00025487,2]
[331836266,1720786066302,-500.0,0.00025487,2]
[331836267,1720786066325,-500.0,0.00025487,2]
[331836268,1720786066347,-500.0,0.00025487,2]
[331836269,1720786066369,-500.0,0.00025487,2]
[331836270,1720786066392,-500.0,0.00025487,2]
[331836271,1720786066417,-500.0,0.00025487,2]
[331836272,1720786066439,-247.10722546,0.00025487,2]
[331836273,1720786066460,-500.0,0.00025487,2]
[331836274,1720786066483,-269.69416724,0.00025487,2]
[331836275,1720786066505,-500.0,0.00025487,2]
[331836276,1720786066526,-500.0,0.00025487,2]
[331836277,1720786066548,-300.0,0.00025487,2]
[331836278,1720786066569,-500.0,0.00025487,2]
[331836279,1720786066591,-37186.96127604,0.00025489,3]
[331836315,1720786232554,-151.0,0.00023685,7]
[331836318,1720786232565,-151.0,0.00023685,7]
[331836320,1720786232575,-165.183616,0.00023685,7]
[331836322,1720786232584,-151.0,0.00023685,7]
[331836324,1720786232594,-108.45225236,0.00023685,7]
[331836348,1720786238786,-42.54774764,0.00023685,7]
[331836349,1720786238798,-151.0,0.00023685,7]
[331836350,1720786238807,-151.0,0.00023685,7]
[331836351,1720786238816,-151.0,0.00023685,7]
[331836353,1720786238826,-151.0,0.00023685,7]
[331836354,1720786238836,-151.0,0.00023685,7]
[331836355,1720786238846,-151.0,0.00023685,7]
[331836356,1720786238855,-151.0,0.00023685,7]
[331836358,1720786238865,-151.0,0.00023685,7]
[331836360,1720786238874,-151.0,0.00023685,7]
[331836361,1720786238883,-151.0,0.00023685,7]
[331836363,1720786238893,-151.0,0.00023685,7]
[331836365,1720786238902,-151.0,0.00023685,7]
[331836367,1720786238913,-151.0,0.00023685,7]
[331836369,1720786238922,-151.0,0.00023685,7]
[331836371,1720786238933,-151.0,0.00023685,7]
[331836372,1720786238944,-151.0,0.00023685,7]
[331836373,1720786238954,-151.0,0.00023685,7]
[331836374,1720786238964,-151.0,0.00023685,7]
[331836375,1720786238975,-151.0,0.00023685,7]
[331836376,1720786238984,-151.0,0.00023685,7]
[331836377,1720786238994,-151.0,0.00023685,7]
[331836378,1720786239004,-228.17876,0.00023685,7]
[331836379,1720786239013,-1541.70052308,0.00025,2]
[331836380,1720786239024,-155.18286484,0.00025489,10]
[331836381,1720786239034,-4463.75,0.0002549,3]
[331836382,1720786239044,-3719.79,0.0002549,3]
[331836383,1720786239053,-3099.82,0.0002549,3]
[331836384,1720786239062,-150.5,0.0002549,62]
[331836385,1720786239073,-7104.25723031,0.0002549,3]
[331836418,1720786240723,-74630.57474109,0.0002549,3]
[331836420,1720786240732,-17778.60700119,0.000255,2]
[331837041,1720786252101,-2583.19,0.0002549,3]
[331837042,1720786252111,-15511.53950818,0.000255,2]
[331837191,1720787159134,-5503.49557759,0.00018899,2]
[331837192,1720787159311,-185.272421,0.00021096,2]
[331837193,1720787159334,-30000.0,0.00022579,2]
[331837194,1720787159356,-462.85364022,0.00023353,2]
[331837195,1720787159379,-1000.0,0.00024,5]
[331837196,1720787159400,-581.03,0.00024999,2]
[331837197,1720787159423,-842.61209599,0.00025,2]
[331837198,1720787159445,-150.0,0.00025017,2]
[331837199,1720787159464,-503.0,0.00025017,2]
[331837200,1720787159484,-374.0,0.000254,2]
[331837201,1720787159504,-2000.0,0.00025401,2]
[331837202,1720787159523,-1245.75,0.00025481,3]
[331837203,1720787159544,-1945.03,0.00025481,3]
[331837204,1720787159564,-1620.86,0.00025481,3]
[331837205,1720787159585,-36780.6743871,0.0002549,3]
[331837206,1720787159607,-36780.6743871,0.00025491,3]
[331837207,1720787159630,-7856.808497,0.000255,2]
[331837213,1720787236185,-318.764933,0.00021096,2]
[331837214,1720787236206,-1350.72,0.00025491,3]
[331837215,1720787236228,-1125.6,0.00025491,3]
[331837216,1720787236252,-21239.23104289,0.000255,2]
[331837217,1720787254158,-404.99693521,0.000254,2]
[331837218,1720787254182,-19321.02109479,0.000255,2]
[331837540,1720787442909,-8178.31173378,0.00025,2]
[331837541,1720787443082,-14203.562334,0.00025,2]
[331837676,1720787446060,-43776.44166465,0.00025,2]
[331837678,1720787446074,-354.3723183,0.00025104,2]
[331837681,1720787446085,-260.51865148,0.00025204,2]
[331837683,1720787446096,-26694.32475802,0.0002549,3]
[331837769,1720788262132,178.54048486,0.000249,10]
[331837776,1720788368896,239.55184905,0.00016255,2]
[331837782,1720788431497,2652.6391176,0.00016255,2]
[331837784,1720788454497,525.73842429,0.00016255,2]
[331837786,1720788506442,844.85643747,0.00016255,2]
[331837790,1720788580721,187.7887475,0.00016255,2]
[331837830,1720788632086,-525.73842429,0.00018899,2]
[331837831,1720788632096,-168.27252895,0.000189,2]
[331837832,1720788632106,-844.85643747,0.00019164,2]
[331837834,1720788632115,-319.401951,0.00021096,2]
[331837836,1720788632125,-3393.83873003,0.00022141,2]
[331837879,1720788638016,-166.81585804,0.00018899,2]
[331837880,1720788638026,-4867.31388717,0.00022141,2]
[331837881,1720788638036,-168.27252895,0.000239,2]
[331837882,1720788638046,-492.90786688,0.00023966,2]
[331837883,1720788638055,-150.0,0.00024324,2]
[331837884,1720788638066,-154.98558302,0.000249,2]
[331837885,1720788638077,-153.0,0.00024986,2]
[331837886,1720788638088,-153.0,0.00024986,2]
[331837887,1720788638099,-153.0,0.00024986,2]
[331837888,1720788638109,-153.0,0.00024986,2]
[331837889,1720788638120,-153.0,0.00024986,2]
[331837890,1720788638129,-1055.17463283,0.00025,2]
[331837891,1720788638139,-1294.85491699,0.00025204,2]
[331837893,1720788640310,-3514.24961299,0.00025204,2]
[331838599,1720788805899,562.16675623,0.00016255,2]
[331838600,1720788814360,156.33744284,0.00016255,2]
[331838601,1720788819035,162.14154244,0.00016255,2]
[331838602,1720788856957,844.85643747,0.00016255,2]
[331838603,1720788886948,844.85643747,0.00016255,2]
[331838604,1720788943061,358.22723627,0.00017159,2]
[331838607,1720789028518,1500.0,0.00016255,2]
[331838608,1720789029205,156.33744284,0.00016255,2]
[331838610,1720789121978,843.60891417,0.00016255,2]
[331838618,1720789220229,227.8639605,0.00016255,2]
[331838621,1720789278168,1880.42050697,0.00016255,2]
[331838624,1720789349552,525.73842429,0.00016255,2]
[331838625,1720789446123,979.69908413,0.00016255,2]
[331838626,1720789450139,936.02671898,0.00016255,2]
[331838628,1720789504159,281.23363357,0.00016255,2]
[331838630,1720789511214,403.6290569,0.00016255,2]
[331838631,1720789535557,525.06313665,0.00016255,2]
[331838634,1720789638908,979.69908413,0.00016255,2]
[331838641,1720789749407,-150.0,0.000189,2]
[331838642,1720789749431,-979.69908413,0.00019164,2]
[331838643,1720789749454,-320.071631,0.00021096,2]
[331838644,1720789749478,-492.90786688,0.00021917,2]
[331838645,1720789749500,-492.90786688,0.00021917,2]
[331838646,1720789749524,-880.59014626,0.0002217,2]
[331838647,1720789749547,-161.078672,0.0002281,2]
[331838651,1720789781161,261.12755317,0.00019703,2]
[331838688,1720789832206,-1016.68302254,0.0002217,2]
[331838690,1720789832216,-162.033235,0.00023086,2]
[331838691,1720789832225,-232.1681743,0.00023235,2]
[331838692,1720789832234,-215.83191418,0.00023453,2]
[331838693,1720789832244,-154.60575532,0.00023455,2]
[331838694,1720789832253,-979.69908413,0.00023882,2]
[331838695,1720789832262,-155.82628254,0.00025047,2]
[331838696,1720789832271,-300.0,0.00025203,2]
[331838698,1720789832280,-20417.97718959,0.00025204,2]
[331838742,1720789838508,-307.32575109,0.00019165,2]
[331838744,1720789838518,-4362.12589475,0.00025204,2]
[331839140,1720789843241,-410.79238568,0.00025204,2]
[331839141,1720789843251,-189.26423783,0.00025204,2]
[331839142,1720789843262,-163.0,0.0002539,8]
[331839143,1720789843272,-1245.39075296,0.000254,2]
[331839144,1720789843281,-374.0,0.000254,2]
[331839145,1720789843290,-258.10169421,0.000254,2]
[331839146,1720789843300,-946.92951843,0.000254,2]
[331839147,1720789843309,-154.59445059,0.00025401,2]
[331839148,1720789843318,-622.56910157,0.00025404,2]
[331839149,1720789843327,-153.79107761,0.0002543,2]
[331839150,1720789843337,-2534.48213449,0.000255,5]
[331839151,1720789843346,-4438.9921632,0.000255,2]
[331840687,1720790407881,601.1953179,0.00016255,2]
[331840698,1720790722664,4699.18434635,0.00016255,2]
[331840699,1720790723082,16254.80038427,0.00016255,2]
[331840701,1720790733722,676.52858805,0.00016255,2]
[331840702,1720790734814,402.60952539,0.00016255,2]
[331840707,1720790748823,2143.04426899,0.00016255,2]
[331840708,1720790757609,1424.58215724,0.00016255,2]
[331840710,1720790796929,12939.54239453,0.00016255,2]
[331840712,1720790815099,2296.25915745,0.00016255,2]
[331840716,1720790924680,4038.95701504,0.00015,2]
[331840718,1720790952154,-300.9742983,0.0002,2]
[331840719,1720790952175,-104.02263691,0.00021,2]
[331840720,1720790958160,-395.97736309,0.00021,2]
[331840721,1720790958183,-1360.4623721,0.00021058,2]
[331840722,1720790958205,-330.906866,0.00021096,2]
[331840723,1720790958226,-500.0,0.00022,2]
[331841292,1720791038473,-500.0,0.00023,2]
[331841295,1720791038484,-828.56332867,0.00023355,2]
[331841297,1720791038494,-300.0,0.00023965,2]
[331841299,1720791038504,-979.69908413,0.00023966,2]
[331841301,1720791038512,-30000.0,0.00023968,2]
[331841303,1720791038521,-500.0,0.00024,2]
[331841305,1720791038531,-206.48135536,0.0002489,2]
[331841306,1720791038540,-31807.5940331,0.0002499,3]
[331841308,1720791038549,-1267.24106724,0.00025,5]
[331841310,1720791038559,-199.02570071,0.00025,2]
[331841312,1720791038568,-98889.18921111,0.00025,2]
[331841314,1720791038578,-492.90786688,0.00025204,2]
[331841316,1720791038588,-206.48135535,0.00025258,2]
[331841318,1720791038597,-374.0,0.000254,2]
[331841320,1720791038606,-219.19348393,0.0002541,2]
[331841322,1720791038615,-601.81679818,0.00025429,2]
[331841324,1720791038624,-150.5,0.0002547,62]
[331841326,1720791038633,-354.0,0.0002547,62]
[331841328,1720791038643,-150.5,0.0002547,62]
[331841330,1720791038652,-153.0,0.00025479,2]
[331841332,1720791038662,-150.5,0.0002548,62]
[331841335,1720791038686,-354.0,0.0002548,62]
[331841337,1720791038697,-150.5,0.0002548,62]
[331841339,1720791038708,-31807.5940331,0.0002549,3]
[331841341,1720791038718,-150.5,0.0002549,62]
[331841343,1720791038729,-354.0,0.0002549,62]
[331841345,1720791038740,-268.91,0.0002549,62]
[331841347,1720791038751,-150.5,0.0002549,62]
[331841350,1720791038762,-31807.5940331,0.00025491,3]
[331841353,1720791038773,-210.9249722,0.00025499,2]
[331841357,1720791038809,-510.04103303,0.00025499,2]
[331841360,1720791038829,-500.0,0.00025499,2]
[331841363,1720791038852,-208.04052371,0.00025499,2]
[331841367,1720791038875,-500.0,0.00025499,2]
[331841370,1720791038895,-500.0,0.00025499,2]
[331841373,1720791038917,-500.0,0.00025499,2]
[331841376,1720791038934,-488.78591707,0.00025499,2]
[331841378,1720791038958,-500.0,0.00025499,2]
[331841381,1720791038978,-355.15178729,0.00025499,2]
[331841385,1720791039001,-500.0,0.00025499,2]
[331841388,1720791039018,-500.0,0.00025499,2]
[331841390,1720791039038,-500.0,0.00025499,2]
[331841393,1720791039056,-500.0,0.00025499,2]
[331841396,1720791039073,-500.0,0.00025499,2]
[331841399,1720791039093,-500.0,0.00025499,2]
[331841402,1720791039106,-473.71522293,0.00025499,2]
[331841406,1720791039137,-172.97505783,0.00025499,2]
[331841409,1720791039156,-500.0,0.00025499,2]
[331841412,1720791039175,-500.0,0.00025499,2]
[331841415,1720791039195,-500.0,0.00025499,2]
[331841418,1720791039213,-500.0,0.00025499,2]
[331841421,1720791039229,-500.0,0.00025499,2]
[331841423,1720791039245,-500.0,0.00025499,2]
[331841426,1720791039260,-500.0,0.00025499,2]
[331841429,1720791039276,-500.0,0.00025499,2]
[331841431,1720791039291,-500.0,0.00025499,2]
[331841434,1720791039307,-500.0,0.00025499,2]
[331841437,1720791039323,-500.0,0.00025499,2]
[331841439,1720791039338,-500.0,0.00025499,2]
[331841442,1720791039354,-500.0,0.00025499,2]
[331841445,1720791039369,-500.0,0.00025499,2]
[331841448,1720791039387,-200.0,0.00025499,2]
[331841450,1720791039402,-36671.00724264,0.000255,2]
[331841453,1720791039418,-7994.0186782,0.000255,2]
[331841456,1720791039433,-151.0,0.000255,2]
[331841458,1720791039449,-151.0,0.000255,2]
[331841461,1720791039465,-151.0,0.000255,7]
[331841464,1720791039483,-151.0,0.000255,7]
[331841467,1720791039499,-151.0,0.000255,7]
[331841469,1720791039514,-151.0,0.000255,7]
[331841472,1720791039530,-151.0,0.000255,7]
[331841474,1720791039544,-151.0,0.000255,7]
[331841477,1720791039559,-151.0,0.00025501,7]
[331841479,1720791039573,-154.60421,0.00025501,7]
[331841482,1720791039588,-298.948104,0.00025501,7]
[331841484,1720791039602,-226.907928,0.00025501,2]
[331841487,1720791039617,-226.907928,0.00025501,2]
[331841490,1720791039634,-151.0,0.00025501,7]
[331841492,1720791039649,-14347.28784145,0.00025501,2]
[331841495,1720791039665,-154.59445059,0.00025571,2]
[331841498,1720791039682,-206.48135535,0.00025627,2]
[331841501,1720791039699,-156.008579,0.00025661,2]
[331841503,1720791039714,-601.81679818,0.00025722,2]
[331841505,1720791039728,-153.38202045,0.00025738,2]
[331841508,1720791039744,-601.81679818,0.00025783,2]
[331841511,1720791039762,-150.42453828,0.00025791,2]
[331841527,1720791039895,-153.38202045,0.00025837,2]
[331841532,1720791039915,-154.86619874,0.00025869,2]
[331841535,1720791039926,-659.31259948,0.00025883,2]
[331841538,1720791039937,-150.79426912,0.00025892,2]
[331841541,1720791039951,-167.21919922,0.00025894,2]
[331841544,1720791039961,-154.79092116,0.00025902,2]
[331841547,1720791039971,-206.48135535,0.00025995,2]
[331841549,1720791039981,-500.0,0.00026,2]
[331841551,1720791039991,-1000.0,0.00026,26]
[331841553,1720791040000,-659.31259948,0.00026001,2]
[331841555,1720791040010,-151.0,0.00026018,7]
[331841557,1720791040019,-152.71751146,0.00026165,2]
[331841559,1720791040032,-219.19348393,0.00026276,2]
[331841561,1720791040042,-659.31259948,0.00026277,2]
[331841564,1720791040051,-828.56332861,0.0002629,2]
[331841567,1720791040060,-154.59445059,0.00026334,2]
[331841570,1720791040069,-264.654812,0.00026344,7]
[331841572,1720791040079,-206.48135535,0.00026363,2]
[331841575,1720791040088,-226.907928,0.0002639,2]
[331841577,1720791040098,-226.907928,0.0002639,2]
[331841579,1720791040108,-2000.0,0.0002639,2]
[331841581,1720791040117,-219.19348393,0.00026463,2]
[331841583,1720791040127,-3000.0,0.000265,2]
[331841585,1720791040136,-3000.0,0.0002651,2]
[331841587,1720791040146,-226.907928,0.0002651,2]
[331841589,1720791040156,-226.907928,0.0002651,2]
[331841591,1720791040165,-3000.0,0.0002652,2]
[331841593,1720791040175,-3000.0,0.0002653,2]
[331841596,1720791040185,-3000.0,0.0002654,2]
[331841598,1720791040194,-3000.0,0.0002655,2]
[331841600,1720791040204,-226.907928,0.0002655,2]
[331841602,1720791040214,-226.907928,0.0002655,2]
[331841604,1720791040224,-150.42453828,0.00026559,2]
[331841606,1720791040233,-3000.0,0.0002656,2]
[331841608,1720791040243,-3000.0,0.0002657,2]
[331841610,1720791040253,-226.907928,0.00026574,2]
[331841612,1720791040263,-226.907928,0.00026574,2]
[331841614,1720791040273,-3000.0,0.0002658,2]
[331841616,1720791040284,-3000.0,0.0002659,2]
[331841618,1720791040294,-31807.5940331,0.0002659,3]
[331841620,1720791040304,-2059.414046,0.000266,2]
[331841622,1720791040314,-3000.0,0.000266,2]
[331841624,1720791040323,-226.907928,0.000266,2]
[331841626,1720791040333,-226.907928,0.000266,2]
[331841628,1720791040342,-219.19348393,0.00026602,2]
[331841630,1720791040352,-154.59445059,0.00026606,2]
[331841632,1720791040361,-3000.0,0.0002661,2]
[331841634,1720791040371,-3000.0,0.0002662,2]
[331841636,1720791040380,-3000.0,0.0002663,2]
[331841638,1720791040389,-3000.0,0.0002664,2]
[331841640,1720791040399,-226.907928,0.0002664,2]
[331841642,1720791040409,-226.907928,0.0002664,2]
[331841644,1720791040418,-219.19348393,0.00026644,2]
[331841646,1720791040428,-3000.0,0.0002665,2]
[331841648,1720791040439,-3000.0,0.0002666,2]
[331841650,1720791040449,-659.31259948,0.00026663,2]
[331841652,1720791040458,-226.907928,0.00026669,2]
[331841654,1720791040468,-226.907928,0.00026669,2]
[331841656,1720791040477,-226.907928,0.00026669,2]
[331841658,1720791040488,-226.907928,0.00026669,2]
[331841660,1720791040498,-3000.0,0.0002667,2]
[331841663,1720791040508,-153.79107761,0.00026677,2]
[331841665,1720791040518,-3000.0,0.0002668,2]
[331841667,1720791040527,-31807.5940331,0.0002668,3]
[331841669,1720791040537,-3000.0,0.0002669,2]
[331841671,1720791040546,-226.907928,0.0002669,2]
[331841673,1720791040555,-226.907918,0.0002669,2]
[331841675,1720791040564,-3000.0,0.000267,2]
[331841677,1720791040574,-3000.0,0.0002671,2]
[331841679,1720791040583,-3000.0,0.0002672,2]
[331841681,1720791040593,-3000.0,0.0002673,2]
[331841683,1720791040602,-3000.0,0.0002674,2]
[331841685,1720791040612,-3000.0,0.0002675,2]
[331841686,1720791040621,-3000.0,0.0002676,2]
[331841687,1720791040630,-601.81679818,0.00026762,2]
[331841688,1720791040640,-3000.0,0.0002677,2]
[331841689,1720791040649,-3000.0,0.0002678,2]
[331841690,1720791040658,-3000.0,0.0002679,2]
[331841691,1720791040668,-3000.0,0.000268,2]
[331841692,1720791040677,-3000.0,0.0002681,2]
[331841694,1720791040686,-3000.0,0.0002682,2]
[331841696,1720791040698,-19241.16464044,0.0002683,5]
[331841699,1720791040708,-3000.0,0.0002683,2]
[331841702,1720791040717,-31807.5940331,0.0002683,3]
[331841705,1720791040727,-533.61,0.00026839,2]
[331841707,1720791040739,-3000.0,0.0002684,2]
[331841709,1720791040749,-151.0,0.00026849,7]
[331841711,1720791040758,-151.0,0.00026849,7]
[331841713,1720791040767,-151.0,0.00026849,7]
[331841715,1720791040777,-151.0,0.00026849,7]
[331841717,1720791040786,-151.0,0.00026849,7]
[331841719,1720791040795,-151.0,0.00026849,7]
[331841721,1720791040804,-285.44584,0.00026849,7]
[331841723,1720791040814,-3000.0,0.0002685,2]
[331841725,1720791040823,-3000.0,0.0002686,2]
[331841727,1720791040832,-154.59445059,0.00026862,2]
[331841729,1720791040841,-3000.0,0.0002687,2]
[331841731,1720791040851,-3000.0,0.0002688,2]
[331841733,1720791040860,-3000.0,0.0002689,2]
[331841735,1720791040870,-4175.586431,0.000269,2]
[331841737,1720791040879,-219.19348393,0.00026932,2]
[331841739,1720791040888,-659.31259948,0.00026936,2]
[331841741,1720791040897,-601.81679818,0.00026969,2]
[331841743,1720791040906,-500.0,0.00027,2]
[331841745,1720791040916,-1000.0,0.00027,27]
[331841747,1720791040925,-886.09134707,0.00027,15]
[331841749,1720791040934,-408.167118,0.00027,30]
[331841751,1720791040953,-219.19348393,0.00027077,2]
[331841753,1720791040963,-153.38202045,0.00027081,2]
[331841755,1720791040972,-3514.24961299,0.00027084,3]
[331841757,1720791040981,-601.81679818,0.00027091,2]
[331841759,1720791040991,-169.076407,0.00027123,2]
[331841761,1720791041000,-169.076407,0.00027123,31]
[331841764,1720791041010,-169.076407,0.00027123,61]
[331841766,1720791041020,-169.076407,0.00027123,90]
[331841768,1720791041032,-169.076407,0.00027123,120]
[331841770,1720791041041,-154.59445059,0.00027165,2]
[331841772,1720791041051,-153.79107761,0.00027185,2]
[331841774,1720791041060,-152.71751146,0.00027189,2]
[331841776,1720791041070,-1579.42092311,0.00027194,2]
[331841778,1720791041079,-154.60575532,0.00027194,2]
[331841780,1720791041089,-330.906866,0.00027195,2]
[331841782,1720791041098,-219.19348393,0.00027228,2]
[331841784,1720791041107,-659.31259948,0.00027242,2]
[331841786,1720791041118,-601.81679818,0.00027272,2]
[331841788,1720791041127,-219.19348393,0.00027292,2]
[331841790,1720791041136,-219.19348393,0.00027294,2]
[331841792,1720791041146,-595.58466533,0.00027333,2]
[331841794,1720791041156,-219.19348393,0.00027354,2]
[331841796,1720791041165,-31807.5940331,0.00027377,3]
[331841798,1720791041174,-167.21919922,0.0002738,2]
[331841800,1720791041183,-31807.5940331,0.00027387,3]
[331841802,1720791041195,-3394.11389557,0.00027394,7]
[331841804,1720791041205,-500.0,0.00027397,7]
[331841806,1720791041214,-515.04683079,0.00027397,7]
[331841808,1720791041224,-500.0,0.00027397,2]
[331841810,1720791041233,-500.0,0.00027397,7]
[331841812,1720791041242,-500.0,0.00027397,7]
[331841814,1720791041251,-500.0,0.00027397,7]
[331841816,1720791041261,-542.69938018,0.00027397,7]
[331841818,1720791041270,-500.0,0.00027397,7]
[331841820,1720791041279,-501.92342805,0.00027397,7]
[331841822,1720791041288,-500.0,0.00027397,7]
[331841824,1720791041297,-596.75,0.00027397,7]
[331841826,1720791041307,-500.0,0.00027397,7]
[331841828,1720791041316,-500.0,0.00027397,7]
[331841830,1720791041326,-500.0,0.00027397,7]
[331841832,1720791041335,-500.0,0.00027397,7]
[331841834,1720791041344,-500.0,0.00027397,7]
[331841836,1720791041354,-500.0,0.00027397,7]
[331841838,1720791041363,-500.0,0.00027397,7]
[331841840,1720791041372,-500.0,0.00027397,7]
[331841842,1720791041381,-500.0,0.00027397,7]
[331841844,1720791041391,-500.0,0.00027397,7]
[331841846,1720791041400,-500.0,0.00027397,7]
[331841848,1720791041409,-500.0,0.00027397,7]
[331841850,1720791041419,-500.0,0.00027397,7]
[331841862,1720791041519,-500.0,0.00027397,7]
[331841864,1720791041529,-500.0,0.00027397,7]
[331841866,1720791041539,-500.0,0.00027397,7]
[331841868,1720791041548,-500.0,0.00027397,7]
[331841870,1720791041558,-500.0,0.00027397,7]
[331841872,1720791041568,-500.0,0.00027397,7]
[331841874,1720791041577,-500.0,0.00027397,7]
[331841876,1720791041587,-500.0,0.00027397,7]
[331841878,1720791041597,-500.0,0.00027397,7]
[331841880,1720791041606,-500.0,0.00027397,7]
[331841882,1720791041617,-500.0,0.00027397,7]
[331841884,1720791041628,-500.0,0.00027397,7]
[331841886,1720791041637,-415.44914535,0.00027397,7]
[331841888,1720791041646,-500.0,0.00027397,7]
[331841890,1720791041655,-500.0,0.00027397,7]
[331841892,1720791041665,-535.2976363,0.00027397,7]
[331841894,1720791041674,-500.0,0.00027397,7]
[331841896,1720791041682,-500.0,0.00027397,7]
[331841898,1720791041694,-500.0,0.00027397,7]
[331841900,1720791041703,-500.0,0.00027397,7]
[331841902,1720791041713,-535.85,0.00027397,7]
[331841904,1720791041722,-524.5701232,0.00027397,7]
[331841906,1720791041731,-500.0,0.00027397,4]
[331841908,1720791041740,-613.88,0.00027397,7]
[331841910,1720791041750,-632.37204118,0.00027397,7]
[331841912,1720791041759,-500.0,0.00027397,7]
[331841914,1720791041769,-500.0,0.00027397,7]
[331841916,1720791041779,-500.0,0.00027397,7]
[331841919,1720791041789,-500.0,0.00027397,7]
[331841921,1720791041798,-500.0,0.00027397,7]
[331841922,1720791041808,-500.0,0.00027397,7]
[331841925,1720791041817,-500.0,0.00027397,7]
[331841927,1720791041827,-500.0,0.00027397,7]
[331841929,1720791041836,-176.7674749,0.00027397,7]
[331841930,1720791041846,-500.0,0.00027397,7]
[331841933,1720791041856,-500.0,0.00027397,7]
[331841935,1720791041865,-500.0,0.00027397,7]
[331841937,1720791041875,-511.29124556,0.00027397,7]
[331841939,1720791041883,-500.0,0.00027397,7]
[331841941,1720791041893,-500.0,0.00027397,7]
[331841943,1720791041903,-500.0,0.00027397,7]
[331841945,1720791041914,-507.55428486,0.00027397,7]
[331841947,1720791041924,-500.0,0.00027397,7]
[331841949,1720791041933,-500.0,0.00027397,7]
[331841951,1720791041943,-534.45744966,0.00027397,7]
[331841953,1720791041957,-500.0,0.00027397,7]
[331841955,1720791041966,-500.0,0.00027397,7]
[331841957,1720791041975,-500.0,0.00027397,7]
[331841959,1720791041985,-521.1069306,0.00027397,7]
[331841961,1720791041995,-500.0,0.00027397,7]
[331841963,1720791042004,-533.99000365,0.00027397,7]
[331841965,1720791042013,-500.0,0.00027397,7]
[331841967,1720791042022,-500.0,0.00027397,7]
[331841969,1720791042031,-500.0,0.00027397,7]
[331841971,1720791042041,-500.0,0.00027397,7]